Workbook

Sheet Rekenblad
E1: Versie 2023
B2: Tabel Kengetallen Bouwkosten Súdwest-Fryslân 2023
B3: Naam bouwplan:
B4: Toelichting bouwplan:
B5: Dossier nummer:
B6: OLO nummer:
B7: Datum invoer controle:
B8: Invoer door:
B9: Bouwkosten totaal volgens kengetallentabel | F9: =SUM(F18:F360) -> 137400
B10: Minimale bouwkosten 10% onder berekende bouwkosten | F10: =F9*(1-10%) -> 123660
B11: Opgegeven bouwkosten op aanvraagformulier. Controleer of excl BTW is opgegeven, klantvriendelijk!
B12: Berekening leges volgens bouwkosten | F12: ='Rekenblad leges'!D24 -> 3810.7
B13: Berekening leges welstand | F13: ='Rekenblad leges'!D18 -> 336
B15: Uitleg bij het gebruik van de tabel: Om de bouwkosten van een bouwplan te bepalen kunt u het bruto vloeroppervlak van uw bouwplan of de eenheid bij het "aantal" invullen bij de volgens u meest overeenkomende categorie. De tabel genereert automatisch de bouwkosten. Bij een uitbreiding vult u het bruto vloeroppervlak of de eenheid in bij het type bouwwerk wat u uitbreidt. Voorbeeld: u bouwt een catalogus woning met 2 bouwlagen en een schuin dak met een bruto vloeroppervlak van 120 m2. Vul dan 120 bij het aantal achter catalogus woning 2 laags met een schuin dak. De berekende bouwkosten zullen dan in 2023 € 137.400,00 zijn. Vul dit bedrag in bij de bouwkosten op het aanvraagformulier van omgevingsvergunningaanvraag in.
A17: Blz. | B17: WOONFUNCTIE VRIJSTAAND | D17: Eenheid | E17: Prijs | F17: Som
A18: 22 | B18: Cataloguswoning (2 laags) | C18: 120 | D18: m2 BVO | E18: 1145 | F18: =SUM(C18*E18) -> 137400
A19: 23 | B19: Cataloguswoning (3 laags) | D19: m2 BVO | E19: 1142 | F19: =SUM(C19*E19) -> 0
A20: 24 | B20: Bungalow (tot 120 m²) | D20: m2 BVO | E20: 1747 | F20: =SUM(C20*E20) -> 0
A21: 25 | B21: Herenhuis (schuin dak) | D21: m2 BVO | E21: 1307 | F21: =SUM(C21*E21) -> 0
A22: 26 | B22: Herenhuis (plat dak) | D22: m2 BVO | E22: 1576 | F22: =SUM(C22*E22) -> 0
A23: 27 | B23: Herenhuis (geschakeld met garage) | D23: m2 BVO | E23: 1194 | F23: =SUM(C23*E23) -> 0
A24: 28 | B24: Stedelijke villa (schuin dak) | D24: m2 BVO | E24: 1404 | F24: =SUM(C24*E24) -> 0
A25: 29 | B25: Stedelijke villa (plat dak) | D25: m2 BVO | E25: 1658 | F25: =SUM(C25*E25) -> 0
A26: 30 | B26: Landelijke villa (schuin dak/klein) | D26: m2 BVO | E26: 1470 | F26: =SUM(C26*E26) -> 0
A27: 31 | B27: Landelijke villa (schuin dak/groot) | D27: m2 BVO | E27: 1272 | F27: =SUM(C27*E27) -> 0
A28: 34 | B28: Landelijke villa (plat dak) | D28: m2 BVO | E28: 1693 | F28: =SUM(C28*E28) -> 0
A29: 35 | B29: Woonboerderij | D29: m2 BVO | E29: 1002 | F29: =SUM(C29*E29) -> 0
A30: 32 | B30: Praktijkwoning | D30: m2 BVO | E30: 1430 | F30: =SUM(C30*E30) -> 0
A31: 33 | B31: Bungalow (vanaf 120 m²) | D31: m2 BVO | E31: 1584 | F31: =SUM(C31*E31) -> 0
A32: - | B32: Passief huis | D32: m2 BVO | E32: 1496 | F32: =SUM(C32*E32) -> 0
A33: - | B33: Energie neutrale woning | D33: m2 BVO | E33: 1396 | F33: =SUM(C33*E33) -> 0
A34: 36 | B34: WOONFUNCTIE TWEE ONDER EEN KAP
A35: 37 | B35: Twee onder één kap (schuin dak) | D35: m2 BVO | E35: 1195 | F35: =SUM(C35*E35) -> 0
A36: 38 | B36: 2^1 kap (schuin, garage geschakeld) | D36: m2 BVO | E36: 1179 | F36: =SUM(C36*E36) -> 0
A37: 39 | B37: Twee onder één kap (plat dak) | D37: m2 BVO | E37: 1323 | F37: =SUM(C37*E37) -> 0
A38: 42 | B38: 2^1 kap (plat dak, garage geschakeld) | D38: m2 BVO | E38: 1293 | F38: =SUM(C38*E38) -> 0
A39: 43 | B39: RECREATIEWONINGEN
A40: 44 | B40: Vakantiehuisjes bungalowpark | D40: m2 BVO | E40: 1139 | F40: =SUM(C40*E40) -> 0
A41: 45 | B41: Recreatiewoning (schuin dak) | D41: m2 BVO | E41: 1254 | F41: =SUM(C41*E41) -> 0
A42: 46 | B42: Recreatiewoning (plat dak) | D42: m2 BVO | E42: 1503 | F42: =SUM(C42*E42) -> 0
A43: 47 | B43: Chalet | D43: m2 BVO | E43: 837 | F43: =SUM(C43*E43) -> 0
A44: 48 | B44: WOONFUNCTIE GESCHAKELD
A45: 49 | B45: Seriematig 2 laags (schuin dak) | D45: m2 BVO | E45: 1027 | F45: =SUM(C45*E45) -> 0
A46: 50 | B46: Seriematig 2 laags (plat dak) | D46: m2 BVO | E46: 1237 | F46: =SUM(C46*E46) -> 0
A47: 51 | B47: Bouwconceptwoning (schuin dak) | D47: m2 BVO | E47: 860 | F47: =SUM(C47*E47) -> 0
A48: 41 | B48: Bouwconceptwoning (plat dak) | D48: m2 BVO | E48: 945 | F48: =SUM(C48*E48) -> 0
A49: - | B49: Seriematig 3 laags (schuin dak) | D49: m2 BVO | E49: 994 | F49: =SUM(C49*E49) -> 0
A50: 52 | B50: Seriematig 3 laags (plat dak) | D50: m2 BVO | E50: 1099 | F50: =SUM(C50*E50) -> 0
A51: 40 | B51: Seriematig 4 laags (plat dak) | D51: m2 BVO | E51: 1006 | F51: =SUM(C51*E51) -> 0
A52: 54 | B52: Herenhuis (standaard) | D52: m2 BVO | E52: 1332 | F52: =SUM(C52*E52) -> 0
A53: 55 | B53: Inpassing | D53: m2 BVO | E53: 1358 | F53: =SUM(C53*E53) -> 0
A54: 53 | B54: Herenhuis (klassiek) | D54: m2 BVO | E54: 1621 | F54: =SUM(C54*E54) -> 0
A55: - | B55: Herenhuis (modern) | D55: m2 BVO | E55: 1674 | F55: =SUM(C55*E55) -> 0
A56: 56 | B56: Sociale huurwoningen | D56: m2 BVO | E56: 988 | F56: =SUM(C56*E56) -> 0
A57: 57 | B57: Seniorenwoningen | D57: m2 BVO | E57: 1046 | F57: =SUM(C57*E57) -> 0
A58: 58 | B58: Drive-in woning (2 laags) | D58: m2 BVO | E58: 1284 | F58: =SUM(C58*E58) -> 0
A59: 59 | B59: Drive-in woning (3 laags) | D59: m2 BVO | E59: 1143 | F59: =SUM(C59*E59) -> 0
A60: 60 | B60: Drive-in woning (4 laags) | D60: m2 BVO | E60: 1046 | F60: =SUM(C60*E60) -> 0
A61: 61 | B61: Patiowoning (1 laags) | D61: m2 BVO | E61: 1603 | F61: =SUM(C61*E61) -> 0
A62: 62 | B62: Patiowoning (2 laags) | D62: m2 BVO | E62: 1470 | F62: =SUM(C62*E62) -> 0
A63: 63 | B63: WOONFUNCTIE GESTAPELD
A64: 68 | B64: Urban villa (2 span) | D64: m2 BVO | E64: 1517 | F64: =SUM(C64*E64) -> 0
A65: 69 | B65: Urban villa (3 span) | D65: m2 BVO | E65: 1388 | F65: =SUM(C65*E65) -> 0
A66: 70 | B66: Urban villa (4 span) | D66: m2 BVO | E66: 1254 | F66: =SUM(C66*E66) -> 0
A67: 72 | B67: Woontoren (tot 6 lagen) | D67: m2 BVO | E67: 1204 | F67: =SUM(C67*E67) -> 0
A68: - | B68: Woontoren (tot 8 lagen) | D68: m2 BVO | E68: 1299 | F68: =SUM(C68*E68) -> 0
A69: 73 | B69: Woontoren (tot 12 lagen) | D69: m2 BVO | E69: 1379 | F69: =SUM(C69*E69) -> 0
A70: 76 | B70: Portiekwoning (tot 4 lagen) | D70: m2 BVO | E70: 1198 | F70: =SUM(C70*E70) -> 0
A71: 77 | B71: Portiekwoning (vanaf 4 lagen) | D71: m2 BVO | E71: 1304 | F71: =SUM(C71*E71) -> 0
A72: 78 | B72: Beneden-bovenwoning (2 laags) | D72: m2 BVO | E72: 1308 | F72: =SUM(C72*E72) -> 0
A73: 82 | B73: Beneden-bovenwoning (3 laags) | D73: m2 BVO | E73: 1065 | F73: =SUM(C73*E73) -> 0
A74: 83 | B74: Appartementenblok (tot 3 lagen) | D74: m2 BVO | E74: 1368 | F74: =SUM(C74*E74) -> 0
A75: 84 | B75: Appartementenblok (tot 6 lagen) | D75: m2 BVO | E75: 1342 | F75: =SUM(C75*E75) -> 0
A76: 85 | B76: Appartementenblok (tot 10 lagen) | D76: m2 BVO | E76: 1372 | F76: =SUM(C76*E76) -> 0
A77: 86 | B77: Galerijflat, tot 8 lagen | D77: m2 BVO | E77: 1300 | F77: =SUM(C77*E77) -> 0
A78: 87 | B78: Galerijflat, tot 12 lagen | D78: m2 BVO | E78: 1393 | F78: =SUM(C78*E78) -> 0
A79: 88 | B79: Studentenwoningen (tot 4 lagen) | D79: m2 BVO | E79: 1287 | F79: =SUM(C79*E79) -> 0
A80: 89 | B80: Starterswoningen | D80: m2 BVO | E80: 1130 | F80: =SUM(C80*E80) -> 0
A81: - | B81: Sociale huurwoningen 4 laags | D81: m2 BVO | E81: 1163 | F81: =SUM(C81*E81) -> 0
A82: - | B82: Sociale huurwoningen (tot 8 lagen) | D82: m2 BVO | E82: 1268 | F82: =SUM(C82*E82) -> 0
A83: - | B83: Seniorenwoningen 4 laags | D83: m2 BVO | E83: 1615 | F83: =SUM(C83*E83) -> 0
A84: Blz. | B84: Levensloopbestendige woningen | D84: m2 BVO | E84: 1393 | F84: =SUM(C84*E84) -> 0
A85: - | B85: Zorgwoningen | D85: m2 BVO | E85: 1522 | F85: =SUM(C85*E85) -> 0
A86: - | B86: WOONFUNCTIE VERPLAATSBAAR / TIJDELIJK
A87: - | B87: Containerwoningen (tot 20 m²) | D87: m2 BVO | E87: 1635 | F87: =SUM(C87*E87) -> 0
A88: - | B88: Containerwoning (vanaf 20 m²) | D88: m2 BVO | E88: 1388 | F88: =SUM(C88*E88) -> 0
A89: - | B89: Waterwoning | D89: m2 BVO | E89: 1445 | F89: =SUM(C89*E89) -> 0
A90: - | B90: Woonboot | D90: m2 BVO | E90: 1258 | F90: =SUM(C90*E90) -> 0
A91: - | B91: Woonwagen | D91: m2 BVO | E91: 908 | F91: =SUM(C91*E91) -> 0
A92: - | B92: WOONFUNCTIE OPTIES BIJ NIEUWBOUW
A93: - | B93: Prefab kelder onder woning | D93: m2 BVO | E93: 811 | F93: =SUM(C93*E93) -> 0
A94: - | B94: Kelder onder woning | D94: m2 BVO | E94: 907 | F94: =SUM(C94*E94) -> 0
A95: - | B95: Optopping | D95: m2 BVO | E95: 1682 | F95: =SUM(C95*E95) -> 0
A96: Blz. | B96: Opbouw | D96: m2 BVO | E96: 1523 | F96: =SUM(C96*E96) -> 0
A97: 92 | B97: Kapopbouw | D97: m2 BVO | E97: 777 | F97: =SUM(C97*E97) -> 0
A98: 93 | B98: Dakopbouw geschakeld | D98: m2 BVO | E98: 669 | F98: =SUM(C98*E98) -> 0
A99: 94 | B99: Uitbouw | D99: m2 BVO | E99: 1646 | F99: =SUM(C99*E99) -> 0
A100: 95 | B100: Aanbouw | D100: m2 BVO | E100: 1674 | F100: =SUM(C100*E100) -> 0
A101: 106 | B101: Serre | D101: m1 | E101: 2922 | F101: =SUM(C101*E101) -> 0
A102: 107 | B102: Erker | D102: m2 BVO | E102: 2608 | F102: =SUM(C102*E102) -> 0
A103: 108 | B103: Erker geschakeld | D103: m2 BVO | E103: 2183 | F103: =SUM(C103*E103) -> 0
A104: 111 | B104: UITBREIDING GEEN WOONFUNCTIE
A105: 170 | B105: Garageaanbouw | D105: m2 BVO | E105: 834 | F105: =SUM(C105*E105) -> 0
A106: 183 | B106: Bergingaanbouw | D106: m2 BVO | E106: 1236 | F106: =SUM(C106*E106) -> 0
A107: Blz. | B107: Zwembadaanbouw | D107: m2 BVO | E107: 3118 | F107: =SUM(C107*E107) -> 0
A108: 160 | B108: Praktijkaanbouw | D108: m2 BVO | E108: 1409 | F108: =SUM(C108*E108) -> 0
A109: 161 | B109: Kelder | D109: m2 BVO | E109: 1070 | F109: =SUM(C109*E109) -> 0
A110: 162 | B110: WOONFUNCTIE BIJGEBOUWEN
A111: 166 | B111: Garage ongeïsoleerd | D111: m2 BVO | E111: 1053 | F111: =SUM(C111*E111) -> 0
A112: 168 | B112: Garage geïsoleerd | D112: m2 BVO | E112: 1305 | F112: =SUM(C112*E112) -> 0
A113: - | B113: Berging ongeïsoleerd | D113: m2 BVO | E113: 1113 | F113: =SUM(C113*E113) -> 0
A114: 174 | B114: Berging geïsoleerd | D114: m2 BVO | E114: 1420 | F114: =SUM(C114*E114) -> 0
A115: 175 | B115: Schuur | D115: m2 BVO | E115: 667 | F115: =SUM(C115*E115) -> 0
A116: 172 | B116: Carport prefab | D116: m2 BVO | E116: 489 | F116: =SUM(C116*E116) -> 0
A117: 176 | B117: Carport gebouw | D117: m2 BVO | E117: 700 | F117: =SUM(C117*E117) -> 0
A118: 173 | B118: Carport met berging | D118: m2 BVO | E118: 723 | F118: =SUM(C118*E118) -> 0
A119: Blz. | B119: Garageboxen geschakeld ongeïsoleerd | D119: m2 BVO | E119: 809 | F119: =SUM(C119*E119) -> 0
A120: 120 | B120: Garageboxen geschakeld geïsoleerd | D120: m2 BVO | E120: 1002 | F120: =SUM(C120*E120) -> 0
A121: 121 | B121: Bergingen geschakeld ongeïsoleerd | D121: m2 BVO | E121: 725 | F121: =SUM(C121*E121) -> 0
A122: 122 | B122: Bergingen geschakeld geïsoleerd | D122: m2 BVO | E122: 893 | F122: =SUM(C122*E122) -> 0
A123: 123 | B123: WOONFUNCTIE AANPASSING WONING
A124: 124 | B124: Daklicht | D124: / m² | E124: 1075 | F124: =SUM(C124*E124) -> 0
A125: 125 | B125: Dakraam | D125: / m² | E125: 1926 | F125: =SUM(C125*E125) -> 0
A126: 126 | B126: Lichtkoepel | D126: / m² | E126: 606 | F126: =SUM(C126*E126) -> 0
A127: 127 | B127: Dakkapel prefab (bouwkosten o.b.v. uitbreding BVO) | D127: / m² BVO | E127: 1411 | F127: =SUM(C127*E127) -> 0
A128: 132 | B128: Dakkapel uitgetimmerd (bouwkosten o.b.v. uitbreding BVO) | D128: / m² BVO | E128: 1897 | F128: =SUM(C128*E128) -> 0
A129: 128 | B129: Gevelraam begane grond | D129: / m² | E129: 952 | F129: =SUM(C129*E129) -> 0
A130: Blz. | B130: Gevelraam verdieping | D130: / m² | E130: 1104 | F130: =SUM(C130*E130) -> 0
A131: 115 | B131: Carport prefab | D131: / m² | E131: 411 | F131: =SUM(C131*E131) -> 0
A132: 134 | B132: Carport uitgetimmerd | D132: / m² | E132: 704 | F132: =SUM(C132*E132) -> 0
A133: 135 | B133: Veranda / overkapping | D133: / m² | E133: 744 | F133: =SUM(C133*E133) -> 0
A134: 137 | B134: Dakterras | D134: / m² | E134: 120 | F134: =SUM(C134*E134) -> 0
A135: 138 | B135: Renovatie badkamer standaard | D135: / m² | E135: 1425 | F135: =SUM(C135*E135) -> 0
A136: Blz. | B136: renovatie woning 1965-1974 naar Label A | D136: / m3 | E136: 86 | F136: =SUM(C136*E136) -> 0
A137: 116 | B137: renovatie woning 1965-1974 naar Label A++ | D137: / m3 | E137: 146 | F137: =SUM(C137*E137) -> 0
A138: 117 | B138: renovatie woning 1975-1991 naar Label A++ | D138: / m3 | E138: 139 | F138: =SUM(C138*E138) -> 0
A139: 118 | B139: renovatie woning 1975-1991 naar High-end | D139: / m3 | E139: 206 | F139: =SUM(C139*E139) -> 0
A140: 119 | B140: renovatie toilet en /of badruimtes | D140: / m3 | E140: 590 | F140: =SUM(C140*E140) -> 0
A141: 178 | B141: ALGEMEEN VERBOUW
A142: 179 | B142: Schutting geimpregneerd hout | D142: / m1 | E142: 115 | F142: =SUM(C142*E142) -> 0
A143: 180 | B143: Schutting hardhout | D143: / m1 | E143: 150 | F143: =SUM(C143*E143) -> 0
A144: 181 | B144: vlaggenmast | D144: st | E144: 150 | F144: =SUM(C144*E144) -> 0
A145: 182 | B145: Vervangen/plaatsen raamkozijn (ca. 2 m2) | D145: st | E145: 1100 | F145: =SUM(C145*E145) -> 0
A146: 184 | B146: Deur- of raamkozijn + deur of raam | D146: st | E146: 1100 | F146: =SUM(C146*E146) -> 0
A147: 185 | B147: Velux dakraam | D147: st | E147: 880 | F147: =SUM(C147*E147) -> 0
A148: 187 | B148: Dichtmetselen deur of raamopening | D148: st | E148: 550 | F148: =SUM(C148*E148) -> 0
A149: 188 | B149: Vervangen dakpannen | D149: m2 | E149: 55 | F149: =SUM(C149*E149) -> 0
A150: 177 | B150: Vervangen dakpannen door dakpanplaten | D150: m2 | E150: 28 | F150: =SUM(C150*E150) -> 0
A151: Blz. | B151: Plaatsen zonwering | D151: m1 | E151: 330 | F151: =SUM(C151*E151) -> 0
A152: 202 | B152: Vervangen dakgoten | D152: m1 | E152: 44 | F152: =SUM(C152*E152) -> 0
A153: 203 | B153: Gevel, metselwerk | D153: m2 | E153: 88 | F153: =SUM(C153*E153) -> 0
A154: 204 | B154: Binnenwand kalkzandsteen lijmblokken | D154: m2 | E154: 22 | F154: =SUM(C154*E154) -> 0
A155: 205 | B155: Gevel, stucadoren | D155: m2 | E155: 28 | F155: =SUM(C155*E155) -> 0
A156: 200 | B156: Schuifpui | D156: st | E156: 2750 | F156: =SUM(C156*E156) -> 0
A157: 201 | B157: Noodtrap | D157: st | E157: 2200 | F157: =SUM(C157*E157) -> 0
A158: - | B158: Plaatsen van een pinautomaat | D158: st | E158: 4400 | F158: =SUM(C158*E158) -> 0
A159: - | B159: Overheaddeur | D159: st | E159: 4400 | F159: =SUM(C159*E159) -> 0
A160: - | B160: Garagedeur | D160: st | E160: 1650 | F160: =SUM(C160*E160) -> 0
A161: - | B161: Plaatsen luifel tankstation | D161: m2 | E161: 165 | F161: =SUM(C161*E161) -> 0
A162: - | B162: Overkapping bedrijfsgebouw | D162: m2 | E162: 83 | F162: =SUM(C162*E162) -> 0
A163: - | B163: Nieuwe gevelbeplating bedrijfshal, sandwich | D163: m2 | E163: 110 | F163: =SUM(C163*E163) -> 0
A164: - | B164: Nieuwe gevelbetimmering, red cedar | D164: m2 | E164: 110 | F164: =SUM(C164*E164) -> 0
A165: - | B165: Nieuwe trap | D165: st | E165: 3300 | F165: =SUM(C165*E165) -> 0
A166: - | B166: Toiletruimte | D166: st | E166: 1650 | F166: =SUM(C166*E166) -> 0
A167: - | B167: Nieuwe verdiepingsvloer aanbrengen | D167: m2 | E167: 110 | F167: =SUM(C167*E167) -> 0
A168: - | B168: Verandering intern kantoor | D168: m2 | E168: 165 | F168: =SUM(C168*E168) -> 0
A169: - | B169: Verandering intern opslag | D169: m2 | E169: 55 | F169: =SUM(C169*E169) -> 0
A170: - | B170: Overkapping SPOK (abri) hangplek/rokersruimte | D170: st | E170: 6600 | F170: =SUM(C170*E170) -> 0
A171: - | B171: Schoorsteen/rookgasafvoer (buitenom metaal) | D171: m1 | E171: 358 | F171: =SUM(C171*E171) -> 0
A172: - | B172: Schotelantenne 60 cm | D172: st | E172: 385 | F172: =SUM(C172*E172) -> 0
A173: 206 | B173: Rolluik 4 x 3 meter | D173: st | E173: 3300 | F173: =SUM(C173*E173) -> 0
A174: 207 | B174: Zonnepanelen | D174: m2 | E174: 318 | F174: =SUM(C174*E174) -> 0
A175: - | B175: Vrij in te vullen veld
A176: Blz. | B176: KANTOORFUNCTIE
A177: 150 | B177: Kantoorvilla | D177: / m² | E177: 1672 | F177: =SUM(C177*E177) -> 0
A178: 151 | B178: Kleinschalig kantoor | D178: / m² | E178: 1223 | F178: =SUM(C178*E178) -> 0
A179: 153 | B179: Klein kantoor op bedrijfsterrein | D179: / m² | E179: 1148 | F179: =SUM(C179*E179) -> 0
A180: 154 | B180: Kantoorblok (max 6 lagen) | D180: / m² | E180: 1273 | F180: =SUM(C180*E180) -> 0
A181: 156 | B181: Binnenstedelijke inpassing | D181: / m² | E181: 191 | F181: =SUM(C181*E181) -> 0
A182: 157 | B182: Bijzondere vorm (tot 12 lagen) | D182: / m² | E182: 1619 | F182: =SUM(C182*E182) -> 0
A183: - | B183: Semi-permanent kantoor | D183: / m² | E183: 972 | F183: =SUM(C183*E183) -> 0
A184: 148 | B184: Tijdelijke bebouwing (max. 2 jaar) | D184: / m² | E184: 755 | F184: =SUM(C184*E184) -> 0
A185: 149 | B185: Kleinschalige inpassing | D185: / m² | E185: 1593 | F185: =SUM(C185*E185) -> 0
A186: 159 | B186: Politiebureau (buurtniveau) | D186: / m² | E186: 1845 | F186: =SUM(C186*E186) -> 0
A187: 190 | B187: Brandweerkazerne (buurtniveau) | D187: / m² | E187: 1826 | F187: =SUM(C187*E187) -> 0
A188: 198 | B188: ONDERWIJSFUNCTIE
A189: Blz. | B189: Kinderdagverblijf | D189: / m² | E189: 1423 | F189: =SUM(C189*E189) -> 0
A190: 140 | B190: Basisschool | D190: / m² | E190: 1386 | F190: =SUM(C190*E190) -> 0
A191: 141 | B191: Voortgezet onderwijs, tot twee lagen | D191: / m² | E191: 1362 | F191: =SUM(C191*E191) -> 0
A192: 142 | B192: Voortgezet onderwijs, tot zes lagen | D192: / m² | E192: 1423 | F192: =SUM(C192*E192) -> 0
A193: 143 | B193: Brede school | D193: / m² | E193: 1596 | F193: =SUM(C193*E193) -> 0
A194: 144 | B194: ROC | D194: / m² | E194: 1582 | F194: =SUM(C194*E194) -> 0
A195: 146 | B195: Tijdelijke huisvesting | D195: / m² | E195: 929 | F195: =SUM(C195*E195) -> 0
A196: 147 | B196: Speciale school, lichamelijk | D196: / m² | E196: 1474 | F196: =SUM(C196*E196) -> 0
A197: Blz. | B197: GEZONDHEIDSZORGFUNCTIE
A198: 210 | B198: Ambulance station | D198: / m² | E198: 2966 | F198: =SUM(C198*E198) -> 0
A199: 211 | B199: Perifeer ziekenhuis (< 400 bedden) | D199: / m² | E199: 2823 | F199: =SUM(C199*E199) -> 0
A200: - | B200: Apothekers- / Huisartsenpost | D200: / m² | E200: 1648 | F200: =SUM(C200*E200) -> 0
A201: 214 | B201: Gezondheidscentrum | D201: / m² | E201: 1545 | F201: =SUM(C201*E201) -> 0
A202: 215 | B202: Begeleid wonen gehandicapten | D202: / m² | E202: 1573 | F202: =SUM(C202*E202) -> 0
... 158 more rows

Sheet Rekenblad leges (hidden)
D2: Vast tarief | E2: Tarief
B3: 0 | C3: 5000 | D3: 195 | E3: 1 | F3: 1.69
B4: 5000 | C4: 25000 | D4: 195 | E4: 17.03
B5: 25000 | C5: 50000 | D5: 876.2 | E5: 14.85
B6: 50000 | C6: 100000 | D6: 1618.7 | E6: 13.19
B7: 100000 | C7: 250000 | D7: 2937.7 | E7: 11.64
B8: 250000 | C8: 10000000 | D8: 6429.7 | E8: 5.94
B9: 10000000 | D9: 122,259,70 | E9: 1.36
A12: Berekende bouwkosten | B12: =Rekenblad!F9 -> 137400 | C12: Maatgevende bouwkosten | D12: =IF(B14>=B13,B14,B12) -> 137400
A13: 10 % onder berekende bouwkosten | B13: =Rekenblad!F10 -> 123660 | C13: Leges volgens maatgevende bouwkosten | D13: =IF(AND(D12>=B3,D12<C3),D3*E3,IF(AND(D12>=B4,D12<C4),D4+(((D12-B4)/500)*E4),IF(AND(D12>=B5,D12<C5),D5+(((D12-B5)/500)*E5),IF(AND(D12>=B6,D12<C6),D6+(((D12-B6)/500)*E6),IF(AND(D12>=B7,D12<C7),D7+(((D12-B7)/500)*E7),IF(AND(D12>=B8,D12<C8),D8+(((D12-B8)/500)*E8),IF(AND(D12>=B9),D9+(((D12-B9)/500)*E9),""))))))) -> 3808.372
A14: Opgegeven bouwkosten | B14: =Rekenblad!F11 -> 0 | C14: Leges volgens opgegeven bouwkosten | D14: =IF(AND(B14>=B3,B14<C3),D3*E3,IF(AND(B14>=B4,B14<C4),D4+((D28/500)*E4),IF(AND(B14>=B5,B14<C5),D5+((D28/500)*E5),IF(AND(B14>=B6,B14<C6),D6+((D28/500)*E6),IF(AND(B14>=B7,B14<C7),D7+((D28/500)*E7),IF(AND(B14>=B8,B14<C8),D8+((D28/500)*E8),IF(AND(B14>=B9),D9+((D28/500)*E9),""))))))) -> 195
C17: Bouwkosten Welstand afronding | D17: =CEILING(D12,500) -> 137500
C18: Leges Welstand | D18: =IF(D17>2227000,2300,IF(D17>750000,INT(1143+(((D17-750000)/10000)*7.8)),IF(D17>250000,INT(573+(((D17-250000)/10000)*11.4)),IF(D17>100000,INT(258+(((D17-100000)/10000)*21)),IF(D17>25000,INT(93+(((D17-25000)/10000)*22)),IF(D17>5000,INT(45+(((D17-5000)/10000)*24)),43)))))) -> 336
D21: =IF(AND(D12>=B3,D12<C3),D3,IF(AND(D12>=B4,D12<C4),(D12-B4),IF(AND(D12>=B5,D12<C5),(D12-B5),IF(AND(D12>=B6,D12<C6),(D12-B6),IF(AND(D12>=B7,D12<C7),(D12-B7),IF(AND(D12>=B8,D12<C8),(D12-B8),IF(AND(D12>=B9),(D12-B9),""))))))) -> 37400 | E21: =SUM(D12-B8) -> -112600 | F21: =SUM(D21-E21) -> 150000
C22: berekening tarief bouwkosten afg naar boven € 500 | D22: =CEILING(D21,500) -> 37500
C24: Leges volgens maatgevende bouwkosten | D24: =IF(AND(D12>=B3,D12<C3),D3*E3,IF(AND(D12>=B4,D12<C4),D4+((D22/500)*E4),IF(AND(D12>=B5,D12<C5),D5+((D22/500)*E5),IF(AND(D12>=B6,D12<C6),D6+((D22/500)*E6),IF(AND(D12>=B7,D12<C7),D7+((D22/500)*E7),IF(AND(D12>=B8,D12<C8),D8+((D22/500)*E8),IF(AND(D12>=B9),D9+((D22/500)*E9),""))))))) -> 3810.7
D25: =SUM(D24-D13) -> 2.328
C27: Berekening tarief opgegeven bouwkosten | D27: =IF(AND(B14>=B3,B14<C3),D3,IF(AND(B14>=B4,B14<C4),(B14-B4),IF(AND(B14>=B5,B14<C5),(B14-B5),IF(AND(B14>=B6,B14<C6),(B14-B6),IF(AND(B14>=B7,B14<C7),(B14-B7),IF(AND(B14>=B8,B14<C8),(B14-B8),IF(AND(B14>=B9),(B14-B9),""))))))) -> 195
C28: opgegeven bouwkosten afgerond op € 500,-- | D28: =CEILING(D27,500) -> 500
